bitfinex/quotes_BTCUSD_20251102
["timestamp","ask_amount","ask_price","bid_price","bid_amount"]
[1762077441614,0.27757255,110900.0,110890.0,0.003]
[1762077442072,1.05203687,110900.0,110890.0,0.003]
[1762077442741,1.05203687,110900.0,110890.0,0.03288821]
[1762077443483,1.06618407,110900.0,110890.0,0.03288821]
[1762077443915,0.0592671,110900.0,110890.0,0.08241821]
[1762077444133,0.23960975,110900.0,110890.0,0.08241821]
[1762077444356,0.64186191,110900.0,110890.0,0.08241821]
[1762077444599,1.06530407,110900.0,110890.0,0.03288821]
[1762077444827,1.05115687,110900.0,110890.0,0.03288821]
[1762077448581,1.05086687,110900.0,110890.0,0.04826821]
[1762077449804,1.02690687,110900.0,110890.0,0.04826821]
[1762077450264,1.05086687,110900.0,110890.0,0.04826821]
[1762077450472,1.02690687,110900.0,110890.0,0.04826821]
[1762077452553,1.05086687,110900.0,110890.0,0.04826821]
[1762077456239,1.02690687,110900.0,110890.0,0.04826821]
[1762077456434,1.02690687,110900.0,110890.0,0.05715821]
[1762077457649,0.22546255,110900.0,110890.0,0.08072821]
[1762077457858,1.02716687,110900.0,110890.0,0.08072821]
[1762077458065,0.63993471,110900.0,110890.0,0.05715821]
[1762077458929,1.02716687,110900.0,110890.0,0.05715821]
[1762077459855,1.02716687,110900.0,110890.0,0.08072821]
[1762077462371,0.25270255,110900.0,110890.0,0.05715821]
[1762077462548,0.62411471,110900.0,110890.0,0.08072821]
[1762077462748,0.63993471,110900.0,110890.0,0.08072821]
[1762077463094,0.27666255,110900.0,110890.0,0.05715821]
[1762077463296,0.66389471,110900.0,110890.0,0.05715821]
[1762077466958,0.66389471,110900.0,110890.0,0.03288821]
[1762077467206,4.56209668,110900.0,110890.0,0.03288821]
[1762077467421,4.17486452,110900.0,110890.0,0.03288821]
[1762077467866,4.08730915,110900.0,110890.0,0.03288821]
[1762077475855,3.31284483,110900.0,110890.0,0.03288821]
[1762077476073,4.08730915,110900.0,110890.0,0.03288821]
[1762077477380,3.70019643,110900.0,110890.0,0.03288821]
[1762077477764,3.31284483,110900.0,110890.0,0.03288821]
[1762077478043,0.64005415,110900.0,110890.0,0.08472821]
[1762077479218,0.61281415,110900.0,110890.0,0.08472821]
[1762077479436,0.64071415,110900.0,110890.0,0.06048821]
[1762077479649,0.66392415,110900.0,110890.0,0.06048821]
[1762077481470,0.66392415,110900.0,110890.0,0.03288821]
[1762077486011,0.66392415,110900.0,110890.0,0.04890821]
[1762077489142,0.64071415,110900.0,110890.0,0.04890821]
[1762077489363,0.22546255,110900.0,110890.0,0.26566712]
[1762077489586,0.0451199,110900.0,110890.0,0.35647302]
[1762077489809,0.0451199,110900.0,110890.0,0.38084867]
[1762077490253,0.22546255,110900.0,110890.0,0.38084867]
[1762077491592,0.19834858,110900.0,110890.0,0.38084867]
[1762077492039,0.19834858,110900.0,110890.0,0.20048976]
[1762077492257,0.19834858,110900.0,110890.0,0.17611411]
[1762077492934,0.19834858,110900.0,110890.0,0.35647302]
[1762077494191,0.19834858,110900.0,110890.0,0.17611411]
[1762077496158,0.19834858,110900.0,110890.0,0.08530821]
[1762077503299,0.19834858,110900.0,110890.0,0.26566712]
[1762077503678,0.19834858,110900.0,110890.0,0.08530821]
[1762077508676,0.21434858,110900.0,110890.0,0.08530821]
[1762077508884,0.19834858,110900.0,110890.0,0.08530821]
[1762077516237,0.19834858,110900.0,110890.0,0.10968386]
[1762077524598,0.21434858,110900.0,110890.0,0.10968386]
[1762077525043,0.22581858,110900.0,110890.0,0.08544386]
[1762077525257,0.22581858,110900.0,110890.0,0.10922386]
[1762077526236,0.61317018,110900.0,110890.0,0.10922386]
[1762077526641,0.22581858,110900.0,110890.0,0.10922386]
[1762077528509,0.22581858,110900.0,110890.0,0.08544386]
[1762077528738,0.63647018,110900.0,110890.0,0.05726386]
[1762077529812,0.63647018,110900.0,110890.0,0.03288821]
[1762077530953,0.63647018,110900.0,110890.0,0.04804821]
[1762077532245,0.61317018,110900.0,110890.0,0.04804821]
[1762077534637,0.61317018,110900.0,110890.0,0.05945821]
[1762077537508,0.61308812,110900.0,110890.0,0.05945821]
[1762077537728,0.63638812,110900.0,110890.0,0.05945821]
[1762077538184,0.61308812,110900.0,110890.0,0.05945821]
[1762077541994,0.61308812,110900.0,110890.0,0.08266821]
[1762077544690,0.61308812,110900.0,110890.0,0.03288821]
[1762077544691,1.02345766,110900.0,110890.0,0.03288821]
[1762077544897,0.63618812,110900.0,110890.0,0.03288821]
[1762077546217,1.02345766,110900.0,110890.0,0.03288821]
[1762077547148,0.63618812,110900.0,110890.0,0.03288821]
[1762077550007,1.02345766,110900.0,110890.0,0.03288821]
[1762077550640,0.33873759,110900.0,110890.0,0.03288821]
[1762077550857,1.02345766,110900.0,110890.0,0.03288821]
[1762077551079,1.05056957,110900.0,110890.0,0.03288821]
[1762077554656,1.06471632,110900.0,110890.0,0.03288821]
[1762077559804,0.29017724,110900.0,110890.0,0.03288821]
[1762077560004,1.06471632,110900.0,110890.0,0.03288821]
[1762077564860,1.05056957,110900.0,110890.0,0.03288821]
[1762077565781,4.05056957,110900.0,110890.0,0.03288821]
[1762077568267,4.06471644,110900.0,110890.0,0.03288821]
[1762077569643,3.29017736,110900.0,110890.0,0.03288821]
[1762077569927,4.06471644,110900.0,110890.0,0.03288821]
[1762077571766,3.29017736,110900.0,110890.0,0.03288821]
[1762077571970,4.06471644,110900.0,110890.0,0.03288821]
[1762077573771,4.05056957,110900.0,110890.0,0.03288821]
[1762077573979,3.64020003,110900.0,110890.0,0.06099821]
[1762077574183,3.64020003,110900.0,110890.0,0.08493821]
[1762077574383,3.64020003,110900.0,110890.0,0.06099821]
[1762077574594,0.64020003,110900.0,110890.0,0.06099821]
[1762077574791,0.66389003,110900.0,110890.0,0.06099821]
[1762077575255,0.64020003,110900.0,110890.0,0.06099821]
[1762077578457,0.62420003,110900.0,110890.0,0.08493821]
[1762077579334,0.62420003,110900.0,110890.0,0.26529712]
[1762077579629,0.61273003,110900.0,110890.0,0.28968028]
[1762077579960,0.61273003,110900.0,110890.0,0.10932137]
[1762077580588,0.61273003,110900.0,110890.0,0.08493821]
[1762077582390,0.22546049,110900.0,110890.0,0.08493821]
[1762077582564,0.61273003,110900.0,110890.0,0.08493821]
[1762077582975,0.61273003,110900.0,110890.0,0.26529712]
[1762077584086,0.61273003,110900.0,110890.0,0.08493821]
[1762077584692,0.61273003,110900.0,110890.0,0.26529712]
[1762077585643,0.61273003,110900.0,110890.0,0.08493821]
[1762077585880,0.64047003,110900.0,110890.0,0.08493821]
[1762077586067,0.64047003,110900.0,110890.0,0.06099821]
[1762077587040,0.25320049,110900.0,110890.0,0.06099821]
[1762077587244,0.64047003,110900.0,110890.0,0.06099821]
[1762077589271,0.64047003,110900.0,110890.0,0.08493821]
[1762077592116,0.64047003,110900.0,110890.0,0.06099821]
[1762077592319,1.05142957,110900.0,110890.0,0.06099821]
[1762077593174,0.66416003,110900.0,110890.0,0.06099821]
[1762077596908,0.64047003,110900.0,110890.0,0.06099821]
[1762077599468,0.64046218,110900.0,110890.0,0.06099821]
[1762077600313,0.64046218,110900.0,110890.0,0.24135712]
[1762077600536,0.22546049,110900.0,110890.0,0.26518712]
[1762077600772,0.22546049,110900.0,110890.0,0.08482821]
[1762077601398,0.22546049,110900.0,110890.0,0.26518712]
[1762077601821,0.19834858,110900.0,110890.0,0.26518712]
[1762077602243,0.19834858,110900.0,110890.0,0.28957028]
[1762077603525,0.19834858,110900.0,110890.0,0.10921137]
[1762077604116,0.19834858,110900.0,110890.0,0.08482821]
[1762077605360,0.19834858,110900.0,110890.0,0.10921137]
[1762077605583,0.19834858,110900.0,110890.0,0.28957028]
[1762077606928,0.2254574,110900.0,110890.0,0.28957028]
[1762077609803,0.2254574,110900.0,110890.0,0.10921137]
[1762077610227,0.2254574,110900.0,110890.0,0.28947294]
[1762077611623,0.19834858,110900.0,110890.0,0.28947294]
[1762077612267,0.01800593,110900.0,110890.0,0.7090565]
[1762077612473,0.01800593,110900.0,110890.0,0.73322274]
[1762077612646,0.01800593,110900.0,110890.0,0.34074259]
[1762077613022,0.01800593,110900.0,110890.0,0.72800428]
[1762077613192,0.01800593,110900.0,110890.0,0.34074259]
[1762077613624,0.00500593,110900.0,110890.0,0.33883993]
[1762077613817,0.00700593,110900.0,110890.0,0.33983993]
[1762077614019,0.00300593,110900.0,110890.0,0.33883993]
[1762077614365,0.00300593,110900.0,110890.0,0.37132086]
[1762077617235,0.00300593,110900.0,110890.0,0.32277146]
[1762077619715,0.00300593,110900.0,110890.0,0.32274939]
[1762077622577,0.00300593,110900.0,110890.0,0.37129879]
[1762077625204,0.00300593,110900.0,110890.0,0.32274939]
[1762077629187,0.00300593,110900.0,110890.0,0.34708318]
[1762077631913,0.00300593,110900.0,110890.0,0.32274939]
[1762077632118,0.00300593,110900.0,110890.0,0.29564598]
[1762077635176,0.00300593,110900.0,110890.0,0.34419538]
[1762077637572,0.00300593,110900.0,110890.0,0.31173652]
[1762077651778,0.00287067,110900.0,110890.0,0.31173652]
[1762077658884,0.00287067,110900.0,110890.0,0.65044881]
[1762077659078,0.00287067,110900.0,110890.0,0.60318712]
[1762077659280,0.00287067,110900.0,110890.0,1.05880207]
[1762077659910,0.00087067,110900.0,110890.0,1.05780207]
[1762077660565,0.00187067,110900.0,110890.0,1.06180207]
[1762077661007,0.00387067,110900.0,110890.0,1.06880207]
[1762077661174,0.00387067,110900.0,110890.0,0.68182345]
[1762077661540,0.00387067,110900.0,110890.0,1.06880207]
[1762077661934,0.00387067,110900.0,110890.0,0.68182345]
[1762077662142,0.00387067,110900.0,110890.0,1.06880207]
[1762077662949,0.00387067,110900.0,110890.0,1.0780263]
[1762077664524,0.00387067,110900.0,110890.0,1.06880207]
[1762077667406,0.0002,110920.0,110900.0,0.02766]
[1762077667610,0.0002,110930.0,110920.0,0.5664924]
[1762077667824,0.0002,110930.0,110920.0,1.44693594]
[1762077668026,0.0002,110930.0,110920.0,1.45054816]
[1762077669992,0.0012,110930.0,110920.0,1.45254816]
[1762077670689,0.0012,110930.0,110920.0,1.45554816]
[1762077671340,0.0012,110930.0,110920.0,1.39059187]
[1762077671879,0.0012,110930.0,110920.0,1.43915031]
[1762077673156,0.00185582,110930.0,110920.0,1.43915031]
[1762077688232,0.00185582,110930.0,110920.0,1.39059187]
[1762077689489,0.00185582,110930.0,110920.0,1.45554816]
[1762077692631,0.00185582,110930.0,110920.0,1.45193594]
[1762077696457,0.00185582,110930.0,110920.0,1.38697965]
[1762077697332,0.00185582,110930.0,110920.0,1.46829073]
[1762077698940,0.00185582,110930.0,110920.0,1.86526934]
[1762077699412,0.00185582,110930.0,110920.0,1.86888107]
[1762077699614,1e-08,110930.0,110920.0,1.86888107]
[1762077700806,0.0002,110940.0,110930.0,0.22647614]
[1762077701018,0.00034516,110940.0,110930.0,0.83294929]
[1762077701220,0.00056371,110940.0,110930.0,1.21992791]
[1762077701589,0.00056371,110940.0,110930.0,1.22353938]
[1762077701891,0.00056371,110940.0,110930.0,1.37243938]
[1762077702097,0.00056371,110940.0,110930.0,1.37443938]
[1762077702742,0.00156371,110940.0,110930.0,1.37643938]
[1762077704073,0.00156371,110940.0,110930.0,0.98946076]
[1762077705323,0.00156371,110940.0,110930.0,0.90826213]
[1762077709169,0.00156371,110940.0,110930.0,0.52128351]
[1762077709374,0.00156371,110940.0,110930.0,0.90826213]
[1762077710948,0.00156371,110940.0,110930.0,0.90465066]
[1762077711768,0.0014393,110940.0,110930.0,0.75575066]
[1762077716632,0.0014393,110940.0,110930.0,0.81067723]
[1762077717601,0.0014393,110940.0,110930.0,0.42369861]
[1762077718032,0.0014393,110940.0,110930.0,0.81067723]
[1762077719423,0.0014393,110940.0,110930.0,0.8104592]
[1762077720259,0.0014393,110940.0,110930.0,0.74553264]
[1762077725508,0.0014393,110940.0,110930.0,0.82673127]
[1762077728096,0.0014393,110940.0,110930.0,0.79054899]
[1762077728924,0.0014393,110940.0,110930.0,0.83673126]
[1762077731382,0.0014393,110940.0,110930.0,0.74592536]
[1762077731836,0.0014393,110940.0,110930.0,0.89482536]
[1762077733908,1e-08,110940.0,110930.0,1.40148731]
[1762077734116,0.0002,110950.0,110940.0,0.22645989]
[1762077734335,0.00024836,110950.0,110940.0,1.13135966]
[1762077734522,0.00024836,110950.0,110940.0,0.74459907]
[1762077734897,0.00024836,110950.0,110940.0,0.81282519]
[1762077735422,0.00046689,110950.0,110940.0,0.81282519]
[1762077735593,1e-08,110950.0,110940.0,0.81482519]
[1762077736011,1e-08,110950.0,110940.0,1.20158578]
[1762077736635,1e-08,110950.0,110940.0,1.54658578]
[1762077736864,1e-08,110950.0,110940.0,0.89673464]
[1762077737130,1e-08,110950.0,110940.0,1.20230664]
[1762077737353,1e-08,110950.0,110940.0,0.77299577]
[1762077737730,1e-08,110950.0,110940.0,0.78299576]
[1762077738365,1e-08,110950.0,110940.0,1.16975635]
[1762077739831,1e-08,110950.0,110940.0,0.87380166]
[1762077740055,1e-08,110950.0,110940.0,1.02270166]
[1762077740273,1e-08,110950.0,110940.0,0.87380166]
[1762077741977,1e-08,110950.0,110940.0,0.86380167]
[1762077742202,1e-08,110950.0,110940.0,0.87380166]
[1762077743490,1e-08,110950.0,110940.0,1.26056225]
[1762077746998,1e-08,110950.0,110940.0,1.25056226]
[1762077747203,1e-08,110950.0,110940.0,1.26056225]
[1762077747413,1e-08,110950.0,110940.0,0.86380167]
[1762077750109,1e-08,110950.0,110940.0,0.86311738]
[1762077751619,1e-08,110950.0,110940.0,0.8817549]
[1762077751829,1e-08,110950.0,110940.0,0.80063514]
[1762077752049,1e-08,110950.0,110940.0,1.18739573]
[1762077752259,1e-08,110950.0,110940.0,1.22357801]
[1762077753165,1e-08,110950.0,110940.0,0.49681742]
[1762077753377,1e-08,110950.0,110940.0,0.39240902]
[1762077753591,1e-08,110950.0,110940.0,0.37621763]
[1762077753811,1e-08,110950.0,110940.0,0.40863905]
[1762077754450,0.38676059,110960.0,110950.0,0.18026137]
[1762077754671,0.56700572,110960.0,110950.0,0.0759135]
[1762077754901,0.56700572,110960.0,110950.0,0.23138487]
[1762077754902,0.61852572,110960.0,110950.0,0.23138487]
[1762077755353,0.59425572,110960.0,110950.0,0.0511235]
[1762077755796,0.59725572,110960.0,110950.0,0.0511235]
[1762077756229,0.61852572,110960.0,110950.0,0.23138487]
[1762077756448,0.63152572,110960.0,110950.0,0.0521235]
[1762077756670,0.63152572,110960.0,110950.0,0.0369135]
[1762077757291,0.63152572,110960.0,110950.0,0.0126]
[1762077757499,0.63152572,110960.0,110950.0,0.001]
[1762077757916,0.65861934,110960.0,110950.0,0.001]
[1762077758567,0.09161362,110960.0,110950.0,0.19647137]
[1762077758802,0.24758875,110960.0,110950.0,0.23286137]
[1762077759215,0.63434934,110960.0,110950.0,0.0526]
[1762077759427,0.63434934,110960.0,110950.0,0.23286137]
[1762077759643,0.63434934,110960.0,110950.0,0.0526]
[1762077759863,0.63434934,110960.0,110950.0,0.02781]
[1762077760074,0.65883784,110960.0,110950.0,0.02781]
[1762077760493,0.06756212,110960.0,110950.0,0.23286137]
[1762077760705,0.63456784,110960.0,110950.0,0.23286137]
[1762077760922,0.27207725,110960.0,110950.0,0.20807137]
[1762077761124,0.65883784,110960.0,110950.0,0.20807137]
[1762077763344,0.04031212,110960.0,110950.0,0.0526]
[1762077763555,0.59682422,110960.0,110950.0,0.0521235]
[1762077763780,0.42770909,110960.0,110950.0,0.23238487]
[1762077764362,0.60795422,110960.0,110950.0,0.20807137]
[1762077764547,0.42770909,110960.0,110950.0,0.20807137]
[1762077764955,0.0409485,110960.0,110950.0,0.20807137]
[1762077765156,0.42770909,110960.0,110950.0,0.20807137]
[1762077765560,0.60795422,110960.0,110950.0,0.20807137]
[1762077765839,0.42770909,110960.0,110950.0,0.20807137]
[1762077766650,0.0132185,110960.0,110950.0,0.25717487]
[1762077767077,0.0409485,110960.0,110950.0,0.20557487]
[1762077767287,0.22119363,110960.0,110950.0,0.22078487]
[1762077767496,0.45197909,110960.0,110950.0,0.19647137]
[1762077767713,0.63222422,110960.0,110950.0,0.19647137]
[1762077767922,0.63222422,110960.0,110950.0,0.001]
[1762077768355,0.63222422,110960.0,110950.0,0.18126137]
[1762077771590,0.0132185,110960.0,110950.0,0.2508875]
[1762077771799,0.19346363,110960.0,110950.0,0.23286137]
[1762077772031,0.60795422,110960.0,110950.0,0.02781]
[1762077772236,0.63222422,110960.0,110950.0,0.18126137]
[1762077772451,0.63222422,110960.0,110950.0,0.001]
[1762077773745,0.63222422,110960.0,110950.0,0.18126137]
[1762077774154,0.63222422,110960.0,110950.0,0.001]
[1762077774983,0.63222422,110960.0,110950.0,0.18126137]
[1762077775182,0.63222422,110960.0,110950.0,0.0918059]
[1762077777947,0.24546363,110960.0,110950.0,0.0918059]
[1762077778112,0.63222422,110960.0,110950.0,0.0918059]
[1762077778911,0.63222422,110960.0,110950.0,0.001]
[1762077779508,0.63222422,110960.0,110950.0,0.0918059]
[1762077779710,0.63222422,110960.0,110950.0,0.27206727]
[1762077780213,0.63222422,110960.0,110950.0,0.29638077]
[1762077781316,1.01915185,110960.0,110950.0,0.29638077]
[1762077781532,0.0409485,110960.0,110950.0,0.32452077]
[1762077781745,0.41119261,110960.0,110950.0,0.38095219]
[1762077782159,0.42744261,110960.0,110950.0,0.34107219]
[1762077782400,1.01827185,110960.0,110950.0,0.32880219]
[1762077783062,0.83802672,110960.0,110950.0,0.32880219]
[1762077783366,0.81428672,110960.0,110950.0,0.33195869]
[1762077783599,0.81428672,110960.0,110950.0,0.35596869]
[1762077784004,0.81428672,110960.0,110950.0,0.3803315]
[1762077784431,0.81428672,110960.0,110950.0,0.3563215]
[1762077784636,0.99453185,110960.0,110950.0,0.3563215]
[1762077784845,0.81428672,110960.0,110950.0,0.3563215]
[1762077786220,0.99453185,110960.0,110950.0,0.3563215]
[1762077786634,1.01827185,110960.0,110950.0,0.3563215]
[1762077787220,0.19346363,110960.0,110950.0,0.3803315]
[1762077787421,0.40006261,110960.0,110950.0,0.3803315]
[1762077788267,0.59655774,110960.0,110950.0,0.3803315]
[1762077788523,0.98340185,110960.0,110950.0,0.3563215]
[1762077788716,0.83802672,110960.0,110950.0,0.3563215]
[1762077788917,1.01827185,110960.0,110950.0,0.3563215]
[1762077789349,0.81428672,110960.0,110950.0,0.33195869]
[1762077789635,0.99453185,110960.0,110950.0,0.33195869]
[1762077793023,0.81428672,110960.0,110950.0,0.33195869]
[1762077793862,0.99453185,110960.0,110950.0,0.35596869]
[1762077796217,0.99453185,110960.0,110950.0,0.33195869]
[1762077797374,0.99453185,110960.0,110950.0,0.35596869]
[1762077797980,0.81428672,110960.0,110950.0,0.35596869]
[1762077798182,0.99453185,110960.0,110950.0,0.35596869]
[1762077798393,0.99453185,110960.0,110950.0,0.33195869]
[1762077799618,0.81428672,110960.0,110950.0,0.33195869]
[1762077799814,0.81428672,110960.0,110950.0,0.35596869]
[1762077800020,0.99453185,110960.0,110950.0,0.35596869]
[1762077801756,1.08435086,110960.0,110940.0,0.0869596]
[1762077801964,3.28590037,110940.0,110930.0,0.05271872]
[1762077802179,0.18034265,110900.0,110890.0,0.11101697]
[1762077802409,0.18034265,110900.0,110880.0,0.01994747]
[1762077802410,3.18035891,110890.0,110880.0,0.01994747]
[1762077802628,3.21470993,110890.0,110880.0,0.04895684]
[1762077802841,3.31277325,110890.0,110880.0,0.0437528]
[1762077803062,3.57221632,110890.0,110880.0,0.04009414]
[1762077803282,4.74959052,110890.0,110880.0,0.00048414]
[1762077803503,4.87559181,110890.0,110880.0,0.00048414]
[1762077803753,4.90270622,110890.0,110880.0,0.00048414]
[1762077803964,0.90782287,110890.0,110880.0,0.01694414]
[1762077804185,1.20642521,110890.0,110880.0,0.04009414]
[1762077804405,0.47981205,110890.0,110880.0,0.04009414]
[1762077804622,1.25350027,110890.0,110880.0,0.04009414]
[1762077804855,0.46149747,110890.0,110880.0,0.04009414]
[1762077805080,0.212,110890.0,110880.0,0.04209414]
[1762077805294,0.219,110890.0,110880.0,0.04209414]
[1762077805506,0.05037253,110890.0,110880.0,0.38009414]
[1762077805750,0.01927668,110890.0,110880.0,0.38009414]
[1762077805964,0.41512079,110890.0,110880.0,0.38109414]
[1762077806179,0.06856975,110890.0,110880.0,0.38109414]
[1762077806406,0.24892866,110890.0,110880.0,0.38109414]
[1762077806629,0.21463559,110890.0,110880.0,0.04109414]
[1762077806851,0.42112079,110890.0,110880.0,0.36695414]
[1762077807055,0.02527668,110890.0,110880.0,0.54632932]
[1762077807266,0.02527668,110890.0,110880.0,0.45676004]
[1762077807478,0.02627668,110890.0,110880.0,0.45776004]
[1762077807710,0.02627668,110890.0,110880.0,0.63813522]
[1762077807922,0.20063559,110890.0,110880.0,0.45776004]
[1762077808127,0.64068176,110890.0,110880.0,0.45776004]
[1762077808343,0.20163559,110890.0,110880.0,0.45776004]
[1762077808555,0.02127668,110890.0,110880.0,0.45776004]
[1762077808767,0.20163559,110890.0,110880.0,0.45776004]
[1762077809701,0.20163559,110890.0,110880.0,0.11776004]
[1762077809702,0.66577761,110890.0,110880.0,0.11776004]
[1762077810366,0.22573144,110890.0,110880.0,0.11776004]
[1762077810575,0.66577761,110890.0,110880.0,0.11776004]
[1762077810791,0.4854187,110890.0,110880.0,0.11776004]
[1762077811005,0.66577761,110890.0,110880.0,0.11776004]
[1762077811217,0.22573144,110890.0,110880.0,0.11776004]
[1762077811648,0.66577761,110890.0,110880.0,0.11776004]
[1762077812073,0.69806381,110890.0,110880.0,0.11776004]
[1762077812303,0.67396796,110890.0,110880.0,0.11776004]
[1762077812523,0.23392179,110890.0,110880.0,0.11776004]
[1762077812729,0.05356288,110890.0,110880.0,0.11776004]
[1762077812944,0.23392179,110890.0,110880.0,0.11776004]
[1762077813862,0.26617437,110890.0,110880.0,0.1149559]
[1762077814122,0.26617437,110890.0,110880.0,0.0123999]
[1762077814324,0.26617437,110890.0,110880.0,0.1032058]
[1762077814965,0.08381546,110890.0,110880.0,0.30161849]
[1762077815179,0.20463559,110890.0,110880.0,0.1042058]
[1762077815389,0.20763559,110890.0,110880.0,0.1042058]
[1762077815607,0.64768176,110890.0,110880.0,0.1042058]
[1762077816051,0.64768176,110890.0,110880.0,0.1268458]
[1762077816498,0.64768176,110890.0,110880.0,0.14488331]
[1762077817387,0.71222054,110890.0,110880.0,0.14488331]
[1762077817612,0.71222054,110890.0,110880.0,0.1268458]
[1762077818529,1.16896572,110890.0,110880.0,0.1268458]
[1762077818751,1.16896572,110890.0,110880.0,0.1042058]
[1762077818975,0.18039144,110870.0,110860.0,0.03491]
[1762077819208,0.6564133,110870.0,110860.0,0.01241516]
[1762077819435,0.73708678,110870.0,110860.0,0.02902516]
[1762077820098,1.37713295,110870.0,110860.0,0.00014516]
[1762077820323,1.35982081,110870.0,110860.0,0.00014516]
[1762077820768,4.47276368,110870.0,110860.0,0.00014516]
[1762077820983,3.59867134,110870.0,110860.0,0.00114516]
[1762077821203,4.47876368,110870.0,110860.0,0.00114516]
[1762077821444,4.47876368,110870.0,110860.0,0.00014516]
[1762077821445,4.47276368,110870.0,110860.0,0.00014516]
[1762077822098,4.03371751,110870.0,110860.0,0.00014516]
[1762077822318,3.39367134,110870.0,110860.0,0.00014516]
[1762077822536,3.71977464,110870.0,110860.0,0.00014516]
[1762077822749,4.16982081,110870.0,110860.0,0.00314516]
[1762077822963,3.72977464,110870.0,110860.0,0.00314516]
[1762077823624,4.16982081,110870.0,110860.0,0.00314516]
[1762077823850,4.16982081,110870.0,110840.0,0.03491]
[1762077823851,0.18042399,110850.0,110840.0,0.01227]
[1762077824087,1.20856983,110850.0,110840.0,0.02787836]
[1762077824276,0.18044027,110840.0,110830.0,0.08112916]
[1762077824534,0.29652135,110840.0,110830.0,0.27714571]
[1762077824758,0.11608108,110840.0,110830.0,0.27714571]
[1762077824964,0.62017856,110840.0,110830.0,0.27823991]
[1762077825172,0.54012148,110840.0,110830.0,0.27823991]
[1762077825380,0.52542247,110840.0,110830.0,0.27823991]
[1762077825882,0.0853763,110840.0,110830.0,0.27823991]
[1762077826095,0.52542247,110840.0,110830.0,0.27823991]
[1762077826306,0.54210224,110840.0,110830.0,0.27823991]
[1762077826956,0.54510224,110840.0,110830.0,0.28923991]
[1762077827409,0.54517248,110840.0,110830.0,0.28923991]
[1762077827626,0.10512631,110840.0,110830.0,0.28923991]
[1762077827842,0.54517248,110840.0,110830.0,0.28923991]
[1762077828496,0.52849271,110840.0,110830.0,0.28923991]
[1762077828710,0.52349271,110840.0,110830.0,0.27823991]
[1762077829137,0.52549271,110840.0,110830.0,0.28523991]
[1762077829389,0.50953072,110840.0,110830.0,0.31762985]
[1762077830492,0.5095792,110840.0,110830.0,0.31762985]
[1762077830703,0.06953303,110840.0,110830.0,0.31762985]
[1762077830945,0.5095792,110840.0,110830.0,0.31762985]
[1762077831377,0.46137116,110840.0,110830.0,0.31762985]
[1762077831592,0.02132499,110840.0,110830.0,0.31762985]
[1762077831837,0.46137116,110840.0,110830.0,0.31762985]
[1762077832484,0.52641337,110840.0,110830.0,0.31762985]
[1762077833360,0.55859739,110840.0,110830.0,0.31762985]
[1762077835350,0.11855122,110840.0,110830.0,0.31762985]
[1762077835564,0.53445084,110840.0,110830.0,0.31762985]
[1762077836883,0.71489111,110840.0,110830.0,0.31762985]
[1762077837113,0.53445084,110840.0,110830.0,0.31762985]
[1762077837340,0.51031878,110840.0,110830.0,0.31762985]
[1762077837562,0.53445748,110840.0,110830.0,0.31762985]
[1762077837792,0.09441131,110840.0,110830.0,0.31762985]
[1762077838040,0.53445748,110840.0,110830.0,0.31762985]
[1762077838626,0.09441131,110840.0,110830.0,0.31762985]
[1762077838838,0.50227346,110840.0,110830.0,0.31762985]
[1762077839527,0.45885808,110840.0,110830.0,0.31762985]
[1762077840513,0.01881191,110840.0,110830.0,0.31762985]
[1762077840765,0.00204831,110840.0,110830.0,0.65762985]
[1762077841505,0.00204831,110840.0,110830.0,0.85271212]
[1762077841959,4.831e-05,110840.0,110830.0,0.84571212]
[1762077842170,0.00104831,110840.0,110830.0,0.85071212]
[1762077842384,0.00404831,110840.0,110830.0,0.86271212]
[1762077844059,0.6765787,110860.0,110850.0,0.18042399]
[1762077844205,0.69336699,110860.0,110850.0,0.32677515]
[1762077844406,0.69336699,110860.0,110850.0,0.33319276]
[1762077844829,0.69336699,110860.0,110850.0,0.67319276]
[1762077845252,0.69936699,110860.0,110850.0,0.74097255]
[1762077845454,0.02278829,110860.0,110850.0,0.74097255]
[1762077845656,0.69936699,110860.0,110850.0,0.74097255]
[1762077846305,0.87977471,110860.0,110850.0,0.49576877]
[1762077846474,0.87977471,110860.0,110850.0,0.20339821]
[1762077846679,0.87377471,110860.0,110850.0,0.20139821]
[1762077846884,0.87477471,110860.0,110850.0,0.3848222]
[1762077847064,0.87677471,110860.0,110850.0,0.20839821]
[1762077847893,0.87677471,110860.0,110850.0,0.21637633]
[1762077847894,0.88517886,110860.0,110850.0,0.21637633]
[1762077848106,0.88517886,110860.0,110850.0,0.24083633]
[1762077848315,0.88517886,110860.0,110850.0,0.20839821]
[1762077848521,0.86839057,110860.0,110850.0,0.20839821]
[1762077849465,0.86839057,110860.0,110850.0,0.20905461]
[1762077850671,0.86839057,110860.0,110850.0,0.10340015]
[1762077850812,0.86839057,110860.0,110850.0,0.13586064]
[1762077851596,0.86839057,110860.0,110850.0,0.10831064]
[1762077851810,0.86839057,110860.0,110850.0,0.0596812]
[1762077852666,0.86539057,110860.0,110850.0,0.0526812]
[1762077852870,0.86539057,110860.0,110850.0,0.0546812]
[1762077853076,0.86739057,110860.0,110850.0,0.0546812]
[1762077853493,0.86739057,110860.0,110850.0,0.0556812]
[1762077853878,0.86739057,110860.0,110850.0,0.0709612]
[1762077854325,0.86739057,110860.0,110850.0,0.0556812]
[1762077855281,0.86739057,110860.0,110850.0,0.0709612]
[1762077855660,0.86739057,110860.0,110850.0,0.0832312]
[1762077856497,0.86739057,110860.0,110850.0,0.0556812]
[1762077856698,3.86739057,110860.0,110850.0,0.02322071]
[1762077857106,0.86739057,110860.0,110850.0,0.02322071]
[1762077857532,0.86739057,110860.0,110850.0,0.03850071]
[1762077857787,0.89451099,110860.0,110850.0,0.05077071]
[1762077858169,0.85898642,110860.0,110850.0,0.05077071]
[1762077858366,0.8861047,110860.0,110850.0,0.05077071]
[1762077861120,0.8861047,110860.0,110850.0,0.02322071]
[1762077862820,0.8861047,110860.0,110850.0,0.03850071]
[1762077863687,0.8861047,110860.0,110850.0,0.03601108]
[1762077863900,0.8861047,110860.0,110850.0,0.03291415]
[1762077865655,0.8861047,110860.0,110850.0,0.04494415]
[1762077865866,0.70569698,110860.0,110850.0,0.27302132]
[1762077866084,0.85898642,110860.0,110850.0,0.27302132]
[1762077866287,0.6785787,110860.0,110850.0,0.27302132]
[1762077866497,0.85898642,110860.0,110850.0,0.27302132]
[1762077867368,0.002,110860.0,110850.0,0.27302132]
[1762077867578,0.6785787,110860.0,110850.0,0.27302132]
[1762077867783,0.85898642,110860.0,110850.0,0.27302132]
[1762077868001,0.6785787,110860.0,110850.0,0.27302132]
[1762077868216,0.85898642,110860.0,110850.0,0.27302132]
[1762077868429,0.6785787,110860.0,110850.0,0.27302132]
[1762077869293,0.6785787,110860.0,110850.0,0.30548181]
[1762077869702,0.6785787,110860.0,110850.0,0.28113863]
[1762077870575,0.85898642,110860.0,110850.0,0.28113863]
[1762077870786,0.85898642,110860.0,110850.0,0.30547477]
[1762077872501,0.6785787,110860.0,110850.0,0.30547477]
[1762077874028,0.6785787,110860.0,110850.0,0.2348315]